[Event "Live Chess"]
[Site "Chess.com"]
[Date "2023.09.16"]
[Round "-"]
[White "abcgames2904"]
[Black "Miinero"]
[Result "0-1"]
[WhiteElo "1185"]
[BlackElo "1942"]
[TimeControl "900+5"]
[EndTime "15:25:29 PDT"]
[Termination "Miinero venceu por xeque-mate"]

1. Nf3 {[%clk 0:14:59.4]} 1... Nf6 {[%clk 0:15:02.3]} 2. g3 {[%clk 0:15:02.3]}
2... d5 {[%clk 0:15:04.8]} 3. Bg2 {[%clk 0:15:06.6]} 3... c6 {[%clk 0:15:04.2]}
4. d4 {[%clk 0:15:10]} 4... e6 {[%clk 0:15:07.4]} 5. e3 {[%clk 0:15:10.7]} 5...
Bd6 {[%clk 0:15:12]} 6. b3 {[%clk 0:15:09.4]} 6... O-O {[%clk 0:15:16.4]} 7. c4
{[%clk 0:15:13.4]} 7... Nbd7 {[%clk 0:15:19.2]} 8. c5 {[%clk 0:15:17.5]} 8...
Bc7 {[%clk 0:15:22.8]} 9. Nc3 {[%clk 0:15:22]} 9... e5 {[%clk 0:15:26.3]} 10.
O-O {[%clk 0:15:20.3]} 10... e4 {[%clk 0:15:29.7]} 11. Nd2 {[%clk 0:15:21.8]}
11... Re8 {[%clk 0:15:30.2]} 12. a4 {[%clk 0:15:22.6]} 12... Nf8 {[%clk
0:15:34.2]} 13. b4 {[%clk 0:15:26.8]} 13... Bg4 {[%clk 0:15:38.3]} 14. f3 {[%clk
0:15:27.4]} 14... exf3 {[%clk 0:15:40.4]} 15. Bxf3 {[%clk 0:15:31.4]} 15... Bh3
{[%clk 0:15:43.9]} 16. Bg2 {[%clk 0:15:33.9]} 16... Qd7 {[%clk 0:15:42.7]} 17.
Nf3 {[%clk 0:15:30.4]} 17... Ne4 {[%clk 0:15:38.4]} 18. Bb2 {[%clk 0:15:25.5]}
18... Bxg2 {[%clk 0:15:34.8]} 19. Kxg2 {[%clk 0:15:26]} 19... Qg4 {[%clk
0:15:37.6]} 20. Qe1 {[%clk 0:15:16.3]} 20... Re6 {[%clk 0:15:35]} 21. Ne2 {[%clk
0:14:50.1]} 21... Rh6 {[%clk 0:15:36]} 22. Nf4 {[%clk 0:14:51.4]} 22... Bxf4
{[%clk 0:15:23.7]} 23. exf4 {[%clk 0:14:45]} 23... Qh3+ {[%clk 0:15:26.2]} 24.
Kg1 {[%clk 0:14:43.5]} 24... Ne6 {[%clk 0:15:21.4]} 25. Qe2 {[%clk 0:14:40.6]}
25... Nxg3 {[%clk 0:14:05.7]} 26. Qg2 {[%clk 0:14:13.3]} 26... Nxf1 {[%clk
0:13:58.2]} 27. Qxh3 {[%clk 0:14:11]} 27... Rxh3 {[%clk 0:14:03.1]} 28. Rxf1
{[%clk 0:14:14.6]} 28... Re8 {[%clk 0:13:52]} 29. f5 {[%clk 0:14:14.2]} 29...
Nf4 {[%clk 0:13:31.7]} 30. Bc1 {[%clk 0:14:07.1]} 30... Ne2+ {[%clk 0:13:33.8]}
31. Kg2 {[%clk 0:14:07.8]} 31... Rh5 {[%clk 0:13:32.9]} 32. Bd2 {[%clk
0:14:07.2]} 32... f6 {[%clk 0:13:30]} 33. Kf2 {[%clk 0:14:02.5]} 33... Rxf5
{[%clk 0:13:28.4]} 34. Re1 {[%clk 0:14:05.9]} 34... Rxf3+ {[%clk 0:13:19.2]} 35.
Kxf3 {[%clk 0:13:59.2]} 35... Nxd4+ {[%clk 0:13:23.1]} 36. Kg2 {[%clk
0:13:53.3]} 36... Rxe1 {[%clk 0:13:23.7]} 37. Bxe1 {[%clk 0:13:58.2]} 37... Kf7
{[%clk 0:13:25.6]} 38. Kf2 {[%clk 0:14:02.6]} 38... f5 {[%clk 0:13:28.7]} 39.
Ke3 {[%clk 0:14:07.5]} 39... Nc2+ {[%clk 0:13:31.6]} 40. Kd2 {[%clk 0:14:11]}
40... Nxe1 {[%clk 0:13:36.5]} 41. Kxe1 {[%clk 0:14:15.9]} 41... g5 {[%clk
0:13:41.1]} 42. Kf2 {[%clk 0:14:20.4]} 42... Ke6 {[%clk 0:13:45.9]} 43. Kg3
{[%clk 0:14:25.1]} 43... Ke5 {[%clk 0:13:50.1]} 44. h3 {[%clk 0:14:28.6]} 44...
d4 {[%clk 0:13:54.6]} 45. Kf3 {[%clk 0:14:32.1]} 45... h5 {[%clk 0:13:57.9]} 46.
Ke2 {[%clk 0:14:37]} 46... g4 {[%clk 0:14:01.7]} 47. hxg4 {[%clk 0:14:39.6]}
47... fxg4 {[%clk 0:14:06.6]} 48. a5 {[%clk 0:14:42.4]} 48... a6 {[%clk
0:14:09.8]} 49. Kd3 {[%clk 0:14:42.4]} 49... g3 {[%clk 0:14:13.7]} 50. Ke2
{[%clk 0:14:39.5]} 50... h4 {[%clk 0:14:18.6]} 51. Kf1 {[%clk 0:14:44.4]} 51...
d3 {[%clk 0:14:22.8]} 52. Kg2 {[%clk 0:14:49.3]} 52... d2 {[%clk 0:14:27]} 53.
Kh3 {[%clk 0:14:54.2]} 53... d1=Q {[%clk 0:14:28.7]} 54. Kxh4 {[%clk 0:14:59.1]}
54... g2 {[%clk 0:14:31.4]} 55. Kg3 {[%clk 0:15:04]} 55... g1=Q+ {[%clk
0:14:34.5]} 56. Kh3 {[%clk 0:15:06.9]} 56... Qdg4# {[%clk 0:14:38.2]} 0-1

[Event "Live Chess"]
[Site "Chess.com"]
[Date "2023.09.16"]
[Round "-"]
[White "FerreiraPedro"]
[Black "Ferazo"]
[Result "1/2-1/2"]
[WhiteElo "1388"]
[BlackElo "1409"]
[TimeControl "900+5"]
[EndTime "15:27:26 PDT"]
[Termination "Partida empatada por acordo"]

1. Nf3 {[%clk 0:14:58.3]} 1... d5 {[%clk 0:15:01.3]} 2. d4 {[%clk 0:15:01.5]}
2... Bf5 {[%clk 0:15:04.1]} 3. c4 {[%clk 0:14:52.3]} 3... e6 {[%clk 0:15:03.3]}
4. Nc3 {[%clk 0:14:55.7]} 4... Nf6 {[%clk 0:15:04.9]} 5. Bf4 {[%clk 0:14:53.3]}
5... Bd6 {[%clk 0:14:56.5]} 6. Bg3 {[%clk 0:14:43.3]} 6... O-O {[%clk
0:14:42.9]} 7. e3 {[%clk 0:14:29.2]} 7... c5 {[%clk 0:14:39.4]} 8. dxc5 {[%clk
0:14:25.5]} 8... Bxc5 {[%clk 0:14:38.4]} 9. cxd5 {[%clk 0:14:29.2]} 9... Nxd5
{[%clk 0:14:10.7]} 10. Nxd5 {[%clk 0:14:30.6]} 10... Qxd5 {[%clk 0:14:11.5]} 11.
Qxd5 {[%clk 0:14:31.1]} 11... exd5 {[%clk 0:14:16.3]} 12. Rd1 {[%clk 0:14:25.2]}
12... Nc6 {[%clk 0:13:30.6]} 13. a3 {[%clk 0:13:54]} 13... Rad8 {[%clk
0:13:11.5]} 14. Bd3 {[%clk 0:13:54.2]} 14... Bg4 {[%clk 0:12:46.8]} 15. Be2
{[%clk 0:13:29.1]} 15... Bf5 {[%clk 0:12:14.2]} 16. O-O {[%clk 0:13:25.3]} 16...
Rfe8 {[%clk 0:12:12.8]} 17. Rc1 {[%clk 0:09:53.9]} 17... Bb6 {[%clk 0:11:33.5]}
18. Bb5 {[%clk 0:09:51.3]} 18... Re6 {[%clk 0:11:09.1]} 19. Ng5 {[%clk 0:09:03]}
19... Rg6 {[%clk 0:10:33]} 20. Nf3 {[%clk 0:08:16]} 20... d4 {[%clk 0:09:57.8]}
21. Bxc6 {[%clk 0:07:55.9]} 21... bxc6 {[%clk 0:09:59.8]} 22. exd4 {[%clk
0:07:46.4]} 22... Be4 {[%clk 0:09:11.6]} 23. Ne5 {[%clk 0:07:35.7]} 23... Re6
{[%clk 0:07:37.4]} 24. Rfe1 {[%clk 0:07:35.6]} 24... Rxd4 {[%clk 0:06:58.3]} 25.
Nc4 {[%clk 0:04:51.3]} 25... Bd5 {[%clk 0:05:33]} 26. Rxe6 {[%clk 0:04:21.7]}
26... Bxe6 {[%clk 0:05:37.9]} 27. Nxb6 {[%clk 0:04:25.7]} 27... axb6 {[%clk
0:05:40.3]} 28. Be5 {[%clk 0:04:16.1]} 28... Rd2 {[%clk 0:05:23.2]} 29. Kf1
{[%clk 0:03:59.2]} 1/2-1/2

[Event "Live Chess"]
[Site "Chess.com"]
[Date "2023.09.16"]
[Round "-"]
[White "IMelefante38"]
[Black "Tercette"]
[Result "1-0"]
[WhiteElo "778"]
[BlackElo "153"]
[TimeControl "900+5"]
[EndTime "15:27:45 PDT"]
[Termination "IMelefante38 venceu por xeque-mate"]

1. c4 {[%clk 0:14:47.2]} 1... e5 {[%clk 0:14:58.3]} 2. e4 {[%clk 0:14:44.5]}
2... Nf6 {[%clk 0:15:00.5]} 3. Nc3 {[%clk 0:14:47.5]} 3... c5 {[%clk 0:15:00.5]}
4. g3 {[%clk 0:14:50.1]} 4... Nc6 {[%clk 0:15:03.8]} 5. Bg2 {[%clk 0:14:53.9]}
5... Ng4 {[%clk 0:14:57.1]} 6. Qxg4 {[%clk 0:14:55.9]} 6... d6 {[%clk
0:14:54.4]} 7. Qf3 {[%clk 0:14:56.3]} 7... d5 {[%clk 0:14:51.7]} 8. exd5 {[%clk
0:14:58.3]} 8... Nb4 {[%clk 0:14:52.7]} 9. Kd1 {[%clk 0:14:43.3]} 9... Be7
{[%clk 0:14:55.4]} 10. Nb5 {[%clk 0:14:37.6]} 10... O-O {[%clk 0:14:58.6]} 11.
a3 {[%clk 0:14:34.3]} 11... Na6 {[%clk 0:14:48.4]} 12. b3 {[%clk 0:14:33.9]}
12... Bg5 {[%clk 0:14:43.4]} 13. Nh3 {[%clk 0:14:33.5]} 13... Bf6 {[%clk
0:14:45.8]} 14. Re1 {[%clk 0:14:25.6]} 14... Bd7 {[%clk 0:14:48.2]} 15. Ra2
{[%clk 0:14:24.8]} 15... Qe7 {[%clk 0:14:42.1]} 16. d6 {[%clk 0:14:24.8]} 16...
Qe8 {[%clk 0:14:41.7]} 17. Nf4 {[%clk 0:14:06.4]} 17... Bg5 {[%clk 0:14:42]} 18.
h4 {[%clk 0:14:06.1]} 18... Bf6 {[%clk 0:14:45.2]} 19. h5 {[%clk 0:14:05.5]}
19... exf4 {[%clk 0:14:48.1]} 20. Rxe8 {[%clk 0:14:09]} 20... Rfxe8 {[%clk
0:14:49.3]} 21. gxf4 {[%clk 0:14:05.4]} 21... b6 {[%clk 0:14:43.8]} 22. Qg3
{[%clk 0:14:04.6]} 22... h6 {[%clk 0:14:41.4]} 23. Bxa8 {[%clk 0:13:58.5]} 23...
Rxa8 {[%clk 0:14:42.8]} 24. d3 {[%clk 0:14:01.8]} 24... Nc7 {[%clk 0:14:37.1]}
25. dxc7 {[%clk 0:14:04.4]} 25... a5 {[%clk 0:14:37.6]} 26. Nd6 {[%clk
0:14:06.5]} 26... a4 {[%clk 0:14:38.9]} 27. Bb2 {[%clk 0:14:03.2]} 27... axb3
{[%clk 0:14:42]} 28. Bxf6 {[%clk 0:14:06.5]} 28... bxa2 {[%clk 0:14:45.3]} 29.
Qxg7# {[%clk 0:14:10]} 1-0

[Event "Live Chess"]
[Site "Chess.com"]
[Date "2023.09.16"]
[Round "-"]
[White "silvaaps"]
[Black "Japaawz"]
[Result "1/2-1/2"]
[WhiteElo "758"]
[BlackElo "403"]
[TimeControl "900+5"]
[EndTime "15:28:25 PDT"]
[Termination "Partida empatada - material insuficiente"]

1. e4 {[%clk 0:15:03.8]} 1... e5 {[%clk 0:15:03.4]} 2. Nf3 {[%clk 0:15:07.5]}
2... Nc6 {[%clk 0:15:05]} 3. Bb5 {[%clk 0:15:10.7]} 3... Nd4 {[%clk 0:15:05.5]}
4. Nxd4 {[%clk 0:15:14.3]} 4... exd4 {[%clk 0:15:09.7]} 5. O-O {[%clk
0:15:18.4]} 5... c6 {[%clk 0:15:11.7]} 6. Bc4 {[%clk 0:15:22.2]} 6... d5 {[%clk
0:15:15.3]} 7. exd5 {[%clk 0:15:25.4]} 7... cxd5 {[%clk 0:15:19.7]} 8. Bb5+
{[%clk 0:15:29.8]} 8... Bd7 {[%clk 0:15:23.4]} 9. Bxd7+ {[%clk 0:15:34.1]} 9...
Qxd7 {[%clk 0:15:27.5]} 10. Qf3 {[%clk 0:15:38.8]} 10... Bd6 {[%clk 0:15:29.2]}
11. c3 {[%clk 0:15:38.8]} 11... Nh6 {[%clk 0:15:33.1]} 12. cxd4 {[%clk 0:15:42]}
12... O-O {[%clk 0:15:37.1]} 13. Nc3 {[%clk 0:15:46.1]} 13... Ng4 {[%clk
0:15:40]} 14. g3 {[%clk 0:15:47.5]} 14... Qe6 {[%clk 0:15:33.5]} 15. Qxd5 {[%clk
0:15:46.1]} 15... Qxd5 {[%clk 0:15:34.4]} 16. Nxd5 {[%clk 0:15:50.2]} 16... Rae8
{[%clk 0:15:39.3]} 17. h3 {[%clk 0:15:48.5]} 17... Nh6 {[%clk 0:15:40.2]} 18. d3
{[%clk 0:15:50.9]} 18... b6 {[%clk 0:15:36.6]} 19. Bxh6 {[%clk 0:15:53.4]} 19...
gxh6 {[%clk 0:15:39.7]} 20. Rae1 {[%clk 0:15:57.7]} 20... Rxe1 {[%clk
0:15:42.5]} 21. Rxe1 {[%clk 0:16:02.4]} 21... b5 {[%clk 0:15:41.7]} 22. Rc1
{[%clk 0:16:04.5]} 22... h5 {[%clk 0:15:42.3]} 23. Rc6 {[%clk 0:16:08.3]} 23...
Bb8 {[%clk 0:15:43.7]} 24. Rc5 {[%clk 0:16:01.9]} 24... a6 {[%clk 0:15:46.4]}
25. Rc6 {[%clk 0:15:57.1]} 25... Rd8 {[%clk 0:15:38]} 26. Ne7+ {[%clk
0:15:50.3]} 26... Kf8 {[%clk 0:15:34.7]} 27. Nf5 {[%clk 0:15:52.3]} 27... a5
{[%clk 0:15:37.2]} 28. Rb6 {[%clk 0:15:51.9]} 28... Bc7 {[%clk 0:15:38.7]} 29.
Rxb5 {[%clk 0:15:55.7]} 29... a4 {[%clk 0:15:42]} 30. Rc5 {[%clk 0:15:56.1]}
30... Bb6 {[%clk 0:15:44.9]} 31. Rc6 {[%clk 0:15:53.1]} 31... Ba7 {[%clk
0:15:38.2]} 32. Rd6 {[%clk 0:15:53.1]} 32... Rxd6 {[%clk 0:15:36.3]} 33. Nxd6
{[%clk 0:15:57.2]} 33... Bxd4 {[%clk 0:15:41.2]} 34. Kg2 {[%clk 0:15:59.3]}
34... Bxb2 {[%clk 0:15:45.1]} 35. Kf3 {[%clk 0:16:02.8]} 35... Bc1 {[%clk
0:15:47.3]} 36. Ke4 {[%clk 0:16:06.1]} 36... Ke7 {[%clk 0:15:51.7]} 37. Nf5+
{[%clk 0:16:09.1]} 37... Kf6 {[%clk 0:15:54.5]} 38. d4 {[%clk 0:16:13.4]} 38...
Bb2 {[%clk 0:15:54.8]} 39. d5 {[%clk 0:16:17.2]} 39... Bc3 {[%clk 0:15:42.2]}
40. d6 {[%clk 0:16:20.8]} 40... Ba5 {[%clk 0:15:46.1]} 41. g4 {[%clk 0:16:22.1]}
41... hxg4 {[%clk 0:15:48.2]} 42. hxg4 {[%clk 0:16:26.7]} 42... h6 {[%clk
0:15:52.4]} 43. Nxh6 {[%clk 0:16:28.3]} 43... Be1 {[%clk 0:15:51]} 44. d7 {[%clk
0:16:31]} 44... Ba5 {[%clk 0:15:54.9]} 45. g5+ {[%clk 0:16:32.3]} 45... Ke7
{[%clk 0:15:58.3]} 46. Kf5 {[%clk 0:16:32.7]} 46... f6 {[%clk 0:15:54.7]} 47.
gxf6+ {[%clk 0:16:31.8]} 47... Kxd7 {[%clk 0:15:58.9]} 48. f7 {[%clk 0:16:35.7]}
48... Bb4 {[%clk 0:16:02.1]} 49. Kg6 {[%clk 0:16:37.8]} 49... Ke7 {[%clk
0:16:05.5]} 50. Kg7 {[%clk 0:16:41.7]} 50... Ke6 {[%clk 0:16:09]} 51. f8=Q
{[%clk 0:16:44.8]} 51... Bxf8+ {[%clk 0:16:12.4]} 52. Kxf8 {[%clk 0:16:49.4]}
52... Ke5 {[%clk 0:16:16.1]} 53. Ng4+ {[%clk 0:16:53.9]} 53... Ke4 {[%clk
0:16:20.2]} 54. Kf7 {[%clk 0:16:56.3]} 54... Kf3 {[%clk 0:16:24.3]} 55. Ne5+
{[%clk 0:16:55.4]} 55... Kxf2 {[%clk 0:16:28.1]} 56. Nd3+ {[%clk 0:17:00]} 56...
Ke2 {[%clk 0:16:32.3]} 57. Nc5 {[%clk 0:17:04.7]} 57... a3 {[%clk 0:16:35.8]}
58. Ke6 {[%clk 0:16:59.8]} 58... Ke3 {[%clk 0:16:39.8]} 59. Kd5 {[%clk
0:17:03.5]} 59... Kd2 {[%clk 0:16:43.8]} 60. Kc4 {[%clk 0:17:08.1]} 60... Kc2
{[%clk 0:16:47.9]} 61. Kb4 {[%clk 0:17:12.8]} 61... Kb2 {[%clk 0:16:52.2]} 62.
Nd3+ {[%clk 0:17:08.8]} 62... Kxa2 {[%clk 0:16:55.3]} 63. Nc1+ {[%clk
0:17:13.5]} 63... Kb2 {[%clk 0:16:59]} 64. Nb3 {[%clk 0:17:16.1]} 64... a2
{[%clk 0:17:02.9]} 65. Ka4 {[%clk 0:17:20.8]} 65... a1=Q+ {[%clk 0:17:06.9]} 66.
Nxa1 {[%clk 0:17:25]} 1/2-1/2

[Event "Live Chess"]
[Site "Chess.com"]
[Date "2023.09.16"]
[Round "-"]
[White "Frogstetic"]
[Black "angelinho2006"]
[Result "0-1"]
[WhiteElo "2014"]
[BlackElo "2091"]
[TimeControl "900+5"]
[EndTime "15:29:28 PDT"]
[Termination "angelinho2006 venceu por desistência"]

1. e4 {[%clk 0:15:01.3]} 1... c5 {[%clk 0:15:04.3]} 2. Nf3 {[%clk 0:15:02.9]}
2... d6 {[%clk 0:15:02.8]} 3. g3 {[%clk 0:15:05.3]} 3... Nf6 {[%clk 0:15:06.3]}
4. d3 {[%clk 0:15:08.2]} 4... Nc6 {[%clk 0:15:07.9]} 5. Bg2 {[%clk 0:15:11.7]}
5... g6 {[%clk 0:15:08.2]} 6. O-O {[%clk 0:15:12.8]} 6... Bg7 {[%clk 0:15:12.5]}
7. h3 {[%clk 0:15:14.1]} 7... O-O {[%clk 0:15:16.6]} 8. c3 {[%clk 0:15:16]} 8...
d5 {[%clk 0:15:17.7]} 9. e5 {[%clk 0:15:15.8]} 9... Nd7 {[%clk 0:15:20.3]} 10.
d4 {[%clk 0:15:20.4]} 10... b6 {[%clk 0:15:09.7]} 11. Nbd2 {[%clk 0:14:44.5]}
11... Ba6 {[%clk 0:15:11.6]} 12. Re1 {[%clk 0:14:47]} 12... e6 {[%clk
0:15:13.4]} 13. Nf1 {[%clk 0:14:19.6]} 13... Qc7 {[%clk 0:15:15.9]} 14. Bf4
{[%clk 0:14:05.3]} 14... Rae8 {[%clk 0:14:43.3]} 15. Qd2 {[%clk 0:13:54.4]}
15... Bxf1 {[%clk 0:14:18.7]} 16. Bxf1 {[%clk 0:13:52.6]} 16... Qc8 {[%clk
0:14:16.7]} 17. b4 {[%clk 0:13:10.2]} 17... f6 {[%clk 0:12:17.2]} 18. exf6
{[%clk 0:12:05.2]} 18... Nxf6 {[%clk 0:11:09]} 19. bxc5 {[%clk 0:11:37.2]} 19...
Ne4 {[%clk 0:11:07.1]} 20. Qb2 {[%clk 0:11:31.3]} 20... bxc5 {[%clk 0:10:02.4]}
21. Bd3 {[%clk 0:10:59.1]} 21... cxd4 {[%clk 0:09:37.4]} 22. cxd4 {[%clk
0:10:46.3]} 22... g5 {[%clk 0:09:10.9]} 23. Rxe4 {[%clk 0:07:48.8]} 23... dxe4
{[%clk 0:09:11]} 24. Bxe4 {[%clk 0:07:53.7]} 24... gxf4 {[%clk 0:09:14.6]} 25.
Rc1 {[%clk 0:07:57.1]} 25... fxg3 {[%clk 0:08:54.9]} 26. Bxc6 {[%clk 0:07:41.1]}
26... Qb8 {[%clk 0:08:11.1]} 27. Qxb8 {[%clk 0:07:20.2]} 27... gxf2+ {[%clk
0:08:14.7]} 28. Kxf2 {[%clk 0:07:22.6]} 28... Rxb8 {[%clk 0:08:18.9]} 29. d5
{[%clk 0:07:09.6]} 29... Rb2+ {[%clk 0:08:13.9]} 30. Kg3 {[%clk 0:07:09.4]}
30... exd5 {[%clk 0:08:08]} 31. Bxd5+ {[%clk 0:07:13.4]} 31... Kh8 {[%clk
0:08:12.4]} 32. Rc7 {[%clk 0:06:52.2]} 32... Rb5 {[%clk 0:06:53.3]} 33. Rd7
{[%clk 0:06:08]} 33... Bf6 {[%clk 0:06:26.8]} 34. Nd2 {[%clk 0:05:10.4]} 34...
Rd8 {[%clk 0:06:21.8]} 35. Rxd8+ {[%clk 0:04:58.2]} 35... Bxd8 {[%clk
0:06:25.4]} 36. Bc4 {[%clk 0:04:57.2]} 36... Rc5 {[%clk 0:06:24]} 37. Bb3 {[%clk
0:04:59.3]} 37... Rc3+ {[%clk 0:05:59.4]} 38. Kg4 {[%clk 0:04:54.4]} 38... Kg7
{[%clk 0:06:03.1]} 39. Ne4 {[%clk 0:04:56.6]} 39... Rd3 {[%clk 0:05:44]} 40. Nc5
{[%clk 0:04:58]} 40... Rd4+ {[%clk 0:05:45]} 41. Kf3 {[%clk 0:05:02]} 41... Kf6
{[%clk 0:05:14.6]} 42. Ne4+ {[%clk 0:04:59]} 42... Ke5 {[%clk 0:05:11.7]} 43.
Nf2 {[%clk 0:04:48.2]} 43... Rf4+ {[%clk 0:05:08.2]} 44. Ke3 {[%clk 0:04:39.7]}
44... Bb6+ {[%clk 0:05:11.8]} 45. Kd3 {[%clk 0:04:41.1]} 45... Rxf2 {[%clk
0:05:16.2]} 0-1

[Event "Live Chess"]
[Site "Chess.com"]
[Date "2023.09.16"]
[Round "-"]
[White "VictoryisAbsolute"]
[Black "MNPedroh"]
[Result "0-1"]
[WhiteElo "610"]
[BlackElo "1858"]
[TimeControl "900+5"]
[EndTime "15:29:36 PDT"]
[Termination "MNPedroh venceu por xeque-mate"]

1. e4 {[%clk 0:15:02.5]} 1... e5 {[%clk 0:15:04.3]} 2. Qh5 {[%clk 0:15:06.2]}
2... Nc6 {[%clk 0:15:07.1]} 3. Bc4 {[%clk 0:15:08.7]} 3... g6 {[%clk 0:15:09.1]}
4. Qf3 {[%clk 0:15:12.6]} 4... Nf6 {[%clk 0:15:12.4]} 5. Qd1 {[%clk 0:15:08.8]}
5... Bg7 {[%clk 0:15:14.5]} 6. Nf3 {[%clk 0:15:10.2]} 6... Nxe4 {[%clk
0:15:15.4]} 7. Qe2 {[%clk 0:15:08.5]} 7... Nd6 {[%clk 0:15:14]} 8. O-O {[%clk
0:15:07.3]} 8... O-O {[%clk 0:15:13]} 9. Nc3 {[%clk 0:15:03.7]} 9... Nxc4 {[%clk
0:15:06.7]} 10. Qxc4 {[%clk 0:15:04.4]} 10... d6 {[%clk 0:15:11.1]} 11. d4
{[%clk 0:14:58.4]} 11... exd4 {[%clk 0:15:12.8]} 12. Nb5 {[%clk 0:14:56.1]}
12... Be6 {[%clk 0:15:10]} 13. Qd3 {[%clk 0:14:49]} 13... Bf5 {[%clk 0:14:59.1]}
14. Qd2 {[%clk 0:14:45.4]} 14... Re8 {[%clk 0:14:56.6]} 15. Re1 {[%clk
0:14:47.6]} 15... Qd7 {[%clk 0:14:56.9]} 16. Nfxd4 {[%clk 0:14:35.1]} 16...
Rxe1+ {[%clk 0:14:41]} 17. Qxe1 {[%clk 0:14:32.1]} 17... Nxd4 {[%clk 0:14:44.2]}
18. Nxd4 {[%clk 0:14:28.9]} 18... Bxd4 {[%clk 0:14:46.8]} 19. Be3 {[%clk
0:14:20]} 19... Re8 {[%clk 0:14:46.5]} 20. c3 {[%clk 0:14:15.5]} 20... Bxe3
{[%clk 0:14:49.1]} 21. fxe3 {[%clk 0:14:17]} 21... Qb5 {[%clk 0:14:52.3]} 22. e4
{[%clk 0:14:15.8]} 22... Rxe4 {[%clk 0:14:49.2]} 23. Qf1 {[%clk 0:13:57.2]}
23... Qxf1+ {[%clk 0:14:49.7]} 24. Kxf1 {[%clk 0:14:00.5]} 24... f6 {[%clk
0:14:46.4]} 25. Kf2 {[%clk 0:13:52.3]} 25... Kf7 {[%clk 0:14:50.1]} 26. Kf3
{[%clk 0:13:54.1]} 26... Re5 {[%clk 0:14:51]} 27. h3 {[%clk 0:13:54.9]} 27... h5
{[%clk 0:14:55.3]} 28. Rg1 {[%clk 0:13:56.2]} 28... Rb5 {[%clk 0:14:56.8]} 29.
b4 {[%clk 0:13:59.1]} 29... a5 {[%clk 0:15:00.7]} 30. a3 {[%clk 0:14:00.5]}
30... axb4 {[%clk 0:15:04.7]} 31. axb4 {[%clk 0:14:03.9]} 31... c5 {[%clk
0:15:08.9]} 32. bxc5 {[%clk 0:14:04.7]} 32... Rxc5 {[%clk 0:15:12]} 33. g4
{[%clk 0:14:07.8]} 33... Rxc3+ {[%clk 0:15:15.7]} 34. Kf4 {[%clk 0:14:10.7]}
34... hxg4 {[%clk 0:15:16.8]} 35. hxg4 {[%clk 0:14:13.6]} 35... Rc4+ {[%clk
0:15:20.6]} 36. Kf3 {[%clk 0:14:14.2]} 36... Rxg4 {[%clk 0:15:25.5]} 37. Rxg4
{[%clk 0:14:18]} 37... Bxg4+ {[%clk 0:15:30.4]} 38. Kxg4 {[%clk 0:14:22.2]}
38... Ke6 {[%clk 0:15:35.1]} 39. Kf4 {[%clk 0:14:25.1]} 39... b5 {[%clk
0:15:40]} 40. Ke3 {[%clk 0:14:29.2]} 40... g5 {[%clk 0:15:44.8]} 41. Kd3 {[%clk
0:14:33.6]} 41... g4 {[%clk 0:15:49.3]} 42. Kc3 {[%clk 0:14:38]} 42... g3 {[%clk
0:15:53.9]} 43. Kb4 {[%clk 0:14:42.5]} 43... g2 {[%clk 0:15:58.6]} 44. Kxb5
{[%clk 0:14:47]} 44... g1=Q {[%clk 0:16:02.9]} 45. Kc6 {[%clk 0:14:51.3]} 45...
Qd4 {[%clk 0:16:07]} 46. Kc7 {[%clk 0:14:55.3]} 46... Qc5+ {[%clk 0:16:11.3]}
47. Kd8 {[%clk 0:14:59]} 47... d5 {[%clk 0:16:13.9]} 48. Ke8 {[%clk 0:15:02.9]}
48... d4 {[%clk 0:16:18.8]} 49. Kd8 {[%clk 0:15:06.6]} 49... d3 {[%clk
0:16:23.7]} 50. Ke8 {[%clk 0:15:11]} 50... d2 {[%clk 0:16:27.1]} 51. Kd8 {[%clk
0:15:15.5]} 51... d1=Q+ {[%clk 0:16:31.1]} 52. Ke8 {[%clk 0:15:20.1]} 52... Qd7#
{[%clk 0:16:34.7]} 0-1

[Event "Live Chess"]
[Site "Chess.com"]
[Date "2023.09.16"]
[Round "-"]
[White "Joasgodoy"]
[Black "Gabriel0298"]
[Result "0-1"]
[WhiteElo "682"]
[BlackElo "1615"]
[TimeControl "900+5"]
[EndTime "15:31:33 PDT"]
[Termination "Gabriel0298 venceu por xeque-mate"]

1. e4 {[%clk 0:14:58.9]} 1... e6 {[%clk 0:15:04.9]} 2. Nf3 {[%clk 0:14:53.5]}
2... d5 {[%clk 0:15:09.8]} 3. exd5 {[%clk 0:14:53.4]} 3... exd5 {[%clk
0:15:13.5]} 4. d4 {[%clk 0:14:53.6]} 4... Nf6 {[%clk 0:15:17.9]} 5. Bg5 {[%clk
0:14:52.9]} 5... Bd6 {[%clk 0:15:21.1]} 6. Nc3 {[%clk 0:14:37.7]} 6... c6 {[%clk
0:15:24.1]} 7. Bd3 {[%clk 0:14:26.5]} 7... O-O {[%clk 0:15:27.3]} 8. Ne5 {[%clk
0:14:02.8]} 8... Re8 {[%clk 0:15:27.3]} 9. Bxh7+ {[%clk 0:13:33.5]} 9... Kxh7
{[%clk 0:14:54.6]} 10. Qd3+ {[%clk 0:13:24.3]} 10... Kg8 {[%clk 0:14:56.2]} 11.
O-O-O {[%clk 0:13:10.3]} 11... Bxe5 {[%clk 0:14:59]} 12. dxe5 {[%clk 0:13:08.7]}
12... Rxe5 {[%clk 0:15:03.9]} 13. Qg3 {[%clk 0:12:35.2]} 13... Re8 {[%clk
0:14:44.4]} 14. Rhe1 {[%clk 0:12:08.3]} 14... Be6 {[%clk 0:14:35.8]} 15. Ne2
{[%clk 0:11:42.5]} 15... Nbd7 {[%clk 0:14:10.4]} 16. Nf4 {[%clk 0:11:41.8]}
16... Qc7 {[%clk 0:13:56.9]} 17. Bh6 {[%clk 0:09:56]} 17... g6 {[%clk
0:12:46.9]} 18. Qg5 {[%clk 0:07:57.8]} 18... Bf5 {[%clk 0:12:25]} 19. h3 {[%clk
0:05:13.6]} 19... Qa5 {[%clk 0:11:22.6]} 20. Nd3 {[%clk 0:04:21.8]} 20... Bxd3
{[%clk 0:11:19.5]} 21. cxd3 {[%clk 0:03:35.1]} 21... Rxe1 {[%clk 0:11:22.1]} 22.
Rxe1 {[%clk 0:03:24.2]} 22... Qxe1+ {[%clk 0:11:25.8]} 23. Kc2 {[%clk
0:03:17.2]} 23... Qxf2+ {[%clk 0:11:28.7]} 24. Kb3 {[%clk 0:03:05.4]} 24... Nc5+
{[%clk 0:11:26.3]} 25. Ka3 {[%clk 0:02:51.7]} 25... Qe1 {[%clk 0:11:22.9]} 26.
Qxf6 {[%clk 0:02:32.3]} 26... Qa5# {[%clk 0:11:26.9]} 0-1

[Event "Live Chess"]
[Site "Chess.com"]
[Date "2023.09.16"]
[Round "-"]
[White "FerreiraPedro"]
[Black "Sophowl"]
[Result "1-0"]
[WhiteElo "1388"]
[BlackElo "265"]
[TimeControl "900+5"]
[EndTime "15:32:00 PDT"]
[Termination "FerreiraPedro venceu por xeque-mate"]

1. Nf3 {[%clk 0:15:04.4]} 1... d5 {[%clk 0:14:57.5]} 2. d4 {[%clk 0:15:07.8]}
2... Nc6 {[%clk 0:14:58.5]} 3. c4 {[%clk 0:15:04.5]} 3... dxc4 {[%clk
0:14:55.2]} 4. e4 {[%clk 0:15:08.6]} 4... Nf6 {[%clk 0:14:48.9]} 5. Nc3 {[%clk
0:15:11]} 5... e5 {[%clk 0:14:34.7]} 6. d5 {[%clk 0:15:01.5]} 6... Nb4 {[%clk
0:14:28.7]} 7. Nxe5 {[%clk 0:14:57.1]} 7... g6 {[%clk 0:13:56.5]} 8. Qa4+ {[%clk
0:14:59.4]} 8... Bd7 {[%clk 0:13:50.7]} 9. Nxd7 {[%clk 0:15:00.4]} 9... Qe7
{[%clk 0:13:45.5]} 10. Nxf6+ {[%clk 0:15:02.5]} 10... Kd8 {[%clk 0:13:38.1]} 11.
Bg5 {[%clk 0:14:57.5]} 11... Nc2+ {[%clk 0:13:42.3]} 12. Qxc2 {[%clk 0:14:58.5]}
12... Qc5 {[%clk 0:13:18.1]} 13. Qa4 {[%clk 0:14:50.5]} 13... Be7 {[%clk
0:12:59]} 14. Qd7# {[%clk 0:14:53.9]} 1-0